bitfinex-derivatives/quotes_BTCF0:USTF0_20260106
["timestamp","ask_amount","ask_price","bid_price","bid_amount"]
[1767737018400,0.0979415,93447.0,93440.0,0.010706]
[1767737018712,0.0979415,93447.0,93436.0,0.09104]
[1767737018907,0.0979415,93447.0,93439.0,0.010706]
[1767737019714,0.00137798,93451.0,93439.0,0.010706]
[1767737020300,0.0979415,93452.0,93436.0,0.09104]
[1767737020505,0.10060821,93452.0,93442.0,0.010706]
[1767737020700,0.00220881,93451.0,93442.0,0.010706]
[1767737021112,0.0979415,93452.0,93442.0,0.010706]
[1767737023512,0.09104,93460.0,93450.0,0.010705]
[1767737023904,0.09104,93464.0,93443.0,0.05734541]
[1767737024108,0.3698,93480.0,93453.0,0.010705]
[1767737024109,0.010703,93469.0,93453.0,0.010705]
[1767737024510,0.010703,93467.0,93453.0,0.010705]
[1767737025416,0.01078989,93470.0,93449.0,0.09104]
[1767737027210,0.0979415,93474.0,93451.0,0.010705]
[1767737027519,0.1086445,93469.0,93453.0,0.010705]
[1767737027720,0.00089599,93467.0,93453.0,0.010705]
[1767737027916,0.00089599,93463.0,93450.0,0.010705]
[1767737028120,0.00089599,93463.0,93447.0,0.010705]
[1767737028320,0.00089599,93463.0,93447.0,0.101745]
[1767737028722,0.00044398,93461.0,93447.0,0.09104]
[1767737029324,0.01114798,93460.0,93447.0,0.09104]
[1767737030716,0.00044398,93460.0,93447.0,0.09104]
[1767737031118,0.00044398,93460.0,93447.0,0.101745]
[1767737031417,0.0979415,93462.0,93449.0,0.010705]
[1767737033122,0.0979415,93462.0,93451.0,0.010705]
[1767737033623,0.0979415,93470.0,93455.0,0.010705]
[1767737034425,0.09104,93475.0,93447.0,0.18644171]
[1767737034426,0.0979415,93468.0,93452.0,0.010705]
[1767737034626,0.0979415,93468.0,93454.0,0.010705]
[1767737035227,0.0979415,93468.0,93447.0,0.18644171]
[1767737036925,0.010703,93467.0,93447.0,0.18644171]
[1767737037427,0.0979415,93459.0,93435.0,0.05734641]
[1767737037632,0.10007484,93450.0,93437.0,0.14204112]
[1767737037836,0.10007484,93450.0,93438.0,0.14204112]
[1767737038134,0.10007484,93450.0,93444.0,0.010706]
[1767737038320,0.010704,93458.0,93444.0,0.010706]
[1767737038321,0.10007484,93454.0,93444.0,0.010706]
[1767737038520,0.010704,93458.0,93444.0,0.010706]
[1767737038826,0.010705,93456.0,93444.0,0.010706]
[1767737039329,0.1086455,93459.0,93439.0,0.14204112]
[1767737039831,0.010704,93457.0,93443.0,0.010706]
[1767737040427,0.010705,93455.0,93443.0,0.010706]
[1767737041026,0.010704,93458.0,93443.0,0.010706]
[1767737041526,0.010703,93474.0,93440.0,0.13379731]
[1767737041527,0.010704,93461.0,93440.0,0.13379731]
[1767737041734,0.10007484,93460.0,93442.0,0.13379731]
[1767737043135,0.10007484,93460.0,93447.0,0.010705]
[1767737043434,0.10007484,93460.0,93443.0,0.03991308]
[1767737044129,0.10007484,93460.0,93449.0,0.010705]
[1767737044934,0.10007484,93460.0,93446.0,0.010706]
[1767737045335,0.11077884,93460.0,93446.0,0.010706]
[1767737045838,0.10007484,93460.0,93448.0,0.010705]
[1767737046026,0.10007484,93460.0,93450.0,0.010705]
[1767737046532,0.10007484,93460.0,93447.0,0.010705]
[1767737048633,0.10007484,93460.0,93443.0,0.03991308]
[1767737048934,0.10007484,93460.0,93442.0,0.09418375]
[1767737049728,0.11077884,93460.0,93442.0,0.09418375]
[1767737049928,0.10007484,93460.0,93450.0,0.010705]
[1767737050838,0.10007484,93460.0,93442.0,0.09418375]
[1767737052136,0.10007484,93460.0,93448.0,0.010705]
[1767737052538,0.10007484,93460.0,93452.0,0.010705]
[1767737052727,0.10007484,93460.0,93450.0,0.010705]
[1767737054035,0.10007484,93460.0,93444.0,0.03991308]
[1767737054240,0.10007484,93460.0,93445.0,0.010706]
[1767737054438,0.10007484,93460.0,93453.0,0.010705]
[1767737054639,0.10007484,93463.0,93453.0,0.010705]
[1767737055741,0.19788789,93463.0,93453.0,0.010705]
[1767737056236,0.20859189,93463.0,93450.0,0.010705]
[1767737056544,0.10007484,93460.0,93450.0,0.010705]
[1767737057237,0.19788789,93460.0,93437.0,0.14160301]
[1767737057444,0.20859189,93460.0,93439.0,0.03991308]
[1767737057737,0.010704,93459.0,93445.0,0.010706]
[1767737058040,0.010704,93459.0,93439.0,0.03991308]
[1767737058041,0.19788789,93460.0,93439.0,0.03991308]
[1767737058434,0.10007484,93450.0,93438.0,0.09098293]
[1767737058634,0.10007484,93450.0,93438.0,0.13089601]
[1767737059036,0.10007484,93450.0,93446.0,0.010706]
[1767737059230,0.09781305,93460.0,93448.0,0.010705]
[1767737059445,0.10007484,93458.0,93448.0,0.010705]
[1767737059833,0.010704,93457.0,93445.0,0.010706]
[1767737060036,5.3e-07,93479.0,93477.0,0.010702]
[1767737060235,0.13769225,93503.0,93488.0,0.010701]
[1767737060440,0.13769225,93498.0,93477.0,0.09104]
[1767737060644,0.13769225,93498.0,93491.0,0.0107]
[1767737060939,0.10007484,93501.0,93493.0,0.0107]
[1767737061141,0.10007484,93501.0,93490.0,0.010701]
[1767737061645,0.13769225,93493.0,93483.0,0.010701]
[1767737061843,0.13769225,93493.0,93485.0,0.010701]
[1767737062042,0.09781305,93493.0,93485.0,0.010701]
[1767737063847,0.09781305,93493.0,93486.0,0.010701]
[1767737064447,0.09781305,93493.0,93485.0,0.010701]
[1767737064749,0.09781305,93493.0,93477.0,0.09104]
[1767737065356,0.09781305,93493.0,93485.0,0.010701]
[1767737065945,0.0398792,93497.0,93485.0,0.010701]
[1767737066143,0.010699,93502.0,93480.0,0.13998792]
[1767737066340,0.10007484,93500.0,93480.0,0.03991308]
[1767737066547,0.23776709,93500.0,93480.0,0.03991308]
[1767737066745,0.0398792,93499.0,93480.0,0.03991308]
[1767737067052,0.13769225,93499.0,93477.0,0.22193601]
[1767737067251,0.13769225,93499.0,93488.0,0.010701]
[1767737067947,0.13769225,93499.0,93477.0,0.22193601]
[1767737068250,0.0505792,93498.0,93482.0,0.010702]
[1767737068642,0.0398792,93480.0,93458.0,0.13089601]
[1767737068843,0.09781305,93481.0,93463.0,0.03991308]
[1767737068844,0.10007484,93481.0,93463.0,0.03991308]
[1767737069053,0.010701,93483.0,93464.0,0.03991308]
[1767737069251,0.13769225,93481.0,93449.0,0.03991308]
[1767737069550,0.13769225,93470.0,93454.0,0.010705]
[1767737069847,0.10007484,93470.0,93454.0,0.010705]
[1767737070046,0.10007484,93470.0,93449.0,0.0420533]
[1767737070047,0.13769225,93467.0,93449.0,0.0420533]
[1767737070353,0.13769225,93465.0,93449.0,0.0420533]
[1767737070751,0.09781305,93465.0,93449.0,0.0420533]
[1767737071151,0.13769225,93465.0,93450.0,0.091]
[1767737074454,0.010704,93464.0,93450.0,0.091]
[1767737074655,0.13769225,93465.0,93450.0,0.091]
[1767737075359,0.13769225,93465.0,93451.0,0.010705]
[1767737076166,0.13769225,93465.0,93453.0,0.010705]
[1767737077061,0.010703,93473.0,93454.0,0.04173427]
[1767737077264,0.04135,93477.0,93458.0,0.010704]
[1767737077453,0.10876052,93484.0,93462.0,0.04173427]
[1767737077653,0.10007484,93480.0,93462.0,0.05243827]
[1767737077855,0.04007666,93479.0,93462.0,0.010704]
[1767737078757,0.05077866,93479.0,93462.0,0.010704]
[1767737079064,0.010702,93477.0,93462.0,0.010704]
[1767737081460,0.04007666,93479.0,93459.0,0.09314197]
[1767737081654,0.04007666,93479.0,93443.0,0.04173427]
[1767737081655,0.03886707,93469.0,93443.0,0.04173427]
[1767737081855,0.13692659,93463.0,93451.0,0.09104]
[1767737082056,0.09805952,93463.0,93451.0,0.09104]
[1767737082253,0.010704,93464.0,93451.0,0.09104]
[1767737082862,0.04957007,93467.0,93451.0,0.09104]
[1767737083166,0.04957007,93467.0,93450.0,0.010705]
[1767737084266,0.010703,93467.0,93450.0,0.010705]
[1767737084465,0.010703,93467.0,93449.0,0.13491449]
[1767737084675,0.10876152,93476.0,93460.0,0.010704]
[1767737084866,0.010702,93474.0,93460.0,0.010704]
[1767737086169,0.010702,93474.0,93457.0,0.010704]
[1767737086367,0.09104,93476.0,93461.0,0.04173427]
[1767737086669,0.09104,93476.0,93457.0,0.04173427]
[1767737087570,0.09104,93476.0,93461.0,0.010704]
[1767737088162,0.09104,93476.0,93463.0,0.010704]
[1767737088362,0.09104,93476.0,93460.0,0.010704]
[1767737089067,0.09104,93476.0,93462.0,0.010704]
[1767737089267,0.10007484,93472.0,93458.0,0.010704]
[1767737089469,0.10007484,93472.0,93456.0,0.04173427]
[1767737089767,0.11077784,93472.0,93456.0,0.05243827]
[1767737090071,0.11077784,93472.0,93455.0,0.10384697]
[1767737090371,0.11077784,93472.0,93455.0,0.010705]
[1767737090564,0.10007484,93472.0,93455.0,0.010705]
[1767737093774,0.10007484,93472.0,93452.0,0.04173427]
[1767737094372,0.010703,93470.0,93453.0,0.010705]
[1767737094874,0.010703,93470.0,93455.0,0.010705]
[1767737095467,0.04372625,93473.0,93457.0,0.010704]
[1767737096777,0.0322461,93472.0,93457.0,0.010704]
[1767737097166,0.010703,93471.0,93454.0,0.010705]
[1767737097367,0.010703,93471.0,93456.0,0.010705]
[1767737097976,0.010703,93469.0,93452.0,0.04173427]
[1767737098279,0.010703,93469.0,93454.0,0.010705]
[1767737099578,0.010703,93469.0,93452.0,0.04173427]
[1767737099579,0.0429491,93472.0,93452.0,0.04173427]
[1767737099778,0.0429491,93472.0,93456.0,0.010704]
[1767737100078,0.010703,93470.0,93456.0,0.010704]
[1767737100275,0.0322461,93472.0,93452.0,0.14036487]
[1767737100476,0.19547761,93500.0,93470.0,0.010703]
[1767737100477,0.010701,93484.0,93470.0,0.010703]
[1767737100677,0.010701,93487.0,93468.0,0.03881005]
[1767737100878,0.11044413,93490.0,93474.0,0.010702]
[1767737101070,0.010701,93488.0,93474.0,0.010702]
[1767737101267,0.09104,93493.0,93475.0,0.03881005]
[1767737101576,0.0107,93492.0,93475.0,0.04951205]
[1767737101771,0.09974313,93499.0,93477.0,0.12819143]
[1767737101772,0.0107,93498.0,93477.0,0.12819143]
[1767737101991,0.01688086,93503.0,93465.0,0.010703]
[1767737101992,0.01688086,93503.0,93486.0,0.04728425]
[1767737102280,0.09104,93505.0,93486.0,0.04728425]
[1767737102478,0.010699,93504.0,93486.0,0.04728425]
[1767737102672,0.02877827,93504.0,93486.0,0.04728425]
[1767737102871,0.02877827,93504.0,93485.0,0.09104]
[1767737103670,0.02877827,93504.0,93485.0,0.101741]
[1767737103977,0.1504179,93504.0,93485.0,0.101741]
[1767737105079,0.010699,93501.0,93485.0,0.09104]
[1767737105279,0.010699,93501.0,93485.0,0.101741]
[1767737105670,0.1397189,93504.0,93485.0,0.101741]
[1767737105671,0.0107,93500.0,93485.0,0.09104]
[1767737105872,0.13197024,93503.0,93485.0,0.101741]
[1767737106273,0.02587356,93501.0,93486.0,0.091]
[1767737106974,0.09526038,93502.0,93486.0,0.091]
[1767737107378,0.010699,93501.0,93486.0,0.091]
[1767737108381,0.09526038,93502.0,93487.0,0.010701]
[1767737108580,0.01807927,93504.0,93489.0,0.010701]
[1767737108770,0.09104,93505.0,93489.0,0.010701]
[1767737108973,0.101739,93505.0,93489.0,0.010701]
[1767737109776,0.09104,93505.0,93491.0,0.0107]
[1767737110086,0.10905851,93505.0,93493.0,0.0107]
[1767737110881,0.09526038,93517.0,93495.0,0.12819143]
[1767737111082,0.09526038,93519.0,93498.0,0.03658325]
[1767737111387,0.11328243,93519.0,93508.0,0.010699]
[1767737112176,0.11328243,93519.0,93505.0,0.010699]
[1767737112484,0.11328243,93519.0,93507.0,0.010699]
[1767737114275,0.11328243,93519.0,93508.0,0.010699]
[1767737114476,0.01802205,93519.0,93512.0,0.010698]
[1767737114677,0.03564673,93524.0,93512.0,0.010698]
[1767737114879,0.09526038,93522.0,93507.0,0.091]
[1767737115081,0.13090711,93522.0,93507.0,0.091]
[1767737115290,0.01762698,93524.0,93512.0,0.010698]
[1767737115492,0.18626038,93527.0,93512.0,0.010698]
[1767737115690,0.09526038,93525.0,93512.0,0.010698]
[1767737115882,0.13090711,93525.0,93512.0,0.010698]
[1767737116078,0.13090711,93525.0,93451.0,0.09171671]
[1767737116079,0.03564673,93512.0,93451.0,0.09171671]
[1767737116283,0.010702,93480.0,93456.0,0.09160818]
[1767737116584,0.010702,93477.0,93457.0,0.010704]
[1767737116785,0.010704,93462.0,93449.0,0.09085693]
[1767737116976,0.010704,93462.0,93445.0,0.010706]
[1767737116977,0.010704,93461.0,93450.0,0.091]
[1767737117183,0.010704,93460.0,93442.0,0.010706]
[1767737117377,0.010704,93458.0,93425.0,0.010708]
[1767737117592,0.010704,93458.0,93426.0,0.34188]
[1767737117878,0.00012587,93457.0,93442.0,0.010706]
[1767737118091,0.00012587,93457.0,93443.0,0.091]
[1767737118301,0.00012587,93457.0,93444.0,0.010706]
[1767737119205,0.00012587,93457.0,93443.0,0.091]
[1767737119401,0.4,93457.0,93419.0,0.0021409]
[1767737119601,0.010708,93429.0,93420.0,0.091]
[1767737119801,0.09526038,93433.0,93417.0,0.07447841]
[1767737120007,0.09526038,93433.0,93407.0,0.00708]
[1767737120008,0.010709,93419.0,93405.0,0.091]
[1767737120302,0.01071,93411.0,93381.0,0.03658325]
[1767737120505,0.09526038,93409.0,93382.0,0.091]
[1767737120707,0.09537003,93408.0,93388.0,0.010712]
[1767737121397,0.09537003,93408.0,93391.0,0.010712]
[1767737121608,0.09537003,93408.0,93392.0,0.091]
[1767737122005,0.09537003,93408.0,93393.0,0.010712]
[1767737122608,0.09537003,93408.0,93392.0,0.091]
[1767737124011,0.09104,93418.0,93396.0,0.13890243]
[1767737124304,0.09104,93418.0,93399.0,0.010711]
[1767737125212,0.09104,93418.0,93396.0,0.12819143]
[1767737125412,0.10596938,93417.0,93395.0,0.010711]
[1767737126213,0.10382985,93417.0,93395.0,0.010711]
[1767737127709,0.09526038,93416.0,93392.0,0.091]
[1767737127912,0.13090711,93414.0,93392.0,0.091]
[1767737128111,0.09526038,93412.0,93392.0,0.091]
[1767737128612,0.09526038,93407.0,93392.0,0.091]
[1767737128912,0.09526038,93407.0,93393.0,0.010712]
[1767737129109,0.09526038,93413.0,93393.0,0.010712]
[1767737129798,0.09526038,93408.0,93392.0,0.091]
[1767737130002,0.09526038,93407.0,93392.0,0.091]
[1767737130608,0.04635673,93406.0,93383.0,0.010713]
[1767737130909,0.13090711,93398.0,93385.0,0.010713]
[1767737131306,0.09526038,93398.0,93385.0,0.010713]
[1767737131508,0.09526038,93398.0,93388.0,0.010712]
[1767737131709,0.09526038,93398.0,93384.0,0.101753]
[1767737133415,0.09526038,93398.0,93384.0,0.09104]
[1767737134318,0.09526038,93398.0,93385.0,0.010713]
[1767737134519,0.13841792,93405.0,93388.0,0.010712]
[1767737134711,0.09494182,93403.0,93388.0,0.010712]
[1767737135716,0.0434761,93400.0,93388.0,0.010712]
[1767737135907,0.09494182,93399.0,93384.0,0.09104]
[1767737136515,0.0541861,93406.0,93384.0,0.09104]
[1767737136819,0.09494182,93424.0,93402.0,0.1349331]
[1767737137013,0.09494182,93424.0,93406.0,0.01071]
[1767737137318,0.010708,93422.0,93406.0,0.01071]
[1767737137813,0.13841792,93416.0,93402.0,0.09108]
[1767737138018,0.13841792,93413.0,93402.0,0.09108]
[1767737139009,0.13841792,93408.0,93390.0,0.010712]
[1767737139209,0.13841792,93408.0,93377.0,0.04207109]
[1767737139210,0.09494182,93404.0,93392.0,0.010712]
[1767737139405,0.09494182,93403.0,93390.0,0.010712]
[1767737139719,0.09494182,93403.0,93386.0,0.09108]
[1767737140420,0.10565182,93410.0,93395.0,0.010711]
[1767737140610,0.14912792,93410.0,93395.0,0.010711]
[1767737140810,0.09494182,93409.0,93395.0,0.010711]
[1767737141514,0.09494182,93405.0,93386.0,0.09108]
[1767737141823,0.09494182,93406.0,93393.0,0.010712]
[1767737144518,0.13841792,93406.0,93393.0,0.010712]
[1767737144712,0.13841792,93406.0,93386.0,0.09108]
[1767737144713,0.13841792,93404.0,93390.0,0.010712]
[1767737144918,0.10565282,93397.0,93380.0,0.00013355]
[1767737145119,0.09494182,93397.0,93384.0,0.010713]
[1767737145319,0.09494182,93397.0,93386.0,0.010713]
[1767737145520,0.14912892,93401.0,93386.0,0.010712]
[1767737148525,0.01071,93411.0,93397.0,0.010711]
[1767737148719,0.09108,93414.0,93400.0,0.010711]
[1767737148920,0.010709,93416.0,93402.0,0.010711]
[1767737151431,0.010709,93416.0,93404.0,0.01071]
[1767737152220,0.010709,93416.0,93396.0,0.09286201]
[1767737152721,0.010709,93416.0,93318.0,0.25034388]
[1767737152722,0.010711,93401.0,93387.0,0.010712]
[1767737152921,0.10565282,93401.0,93387.0,0.101792]
[1767737154228,0.09494182,93401.0,93387.0,0.09108]
[1767737154431,0.09494182,93401.0,93387.0,0.101792]
[1767737154631,0.010711,93399.0,93387.0,0.09108]
[1767737155234,0.010711,93399.0,93380.0,0.00013355]
[1767737155235,0.010711,93400.0,93380.0,0.00013355]
[1767737155533,0.010711,93400.0,93386.0,0.09108]
[1767737156125,0.09494182,93401.0,93389.0,0.010712]
[1767737158233,0.09494182,93401.0,93386.0,0.09108]
[1767737158438,0.09494182,93401.0,93391.0,0.010712]
[1767737159939,0.09494182,93401.0,93386.0,0.09108]
[1767737161229,0.010711,93401.0,93387.0,0.010712]
[1767737161930,0.12851644,93405.0,93386.0,0.09108]
[1767737162137,0.010711,93403.0,93386.0,0.09108]
[1767737163239,0.010711,93403.0,93389.0,0.010712]
[1767737164242,0.010711,93402.0,93389.0,0.010712]
[1767737164441,0.010711,93401.0,93386.0,0.101792]
[1767737165235,0.010711,93401.0,93388.0,0.010712]
[1767737167348,0.010711,93400.0,93386.0,0.010713]
[1767737167538,0.010711,93399.0,93385.0,0.09108]
[1767737169437,0.010711,93402.0,93386.0,0.010713]
[1767737169643,0.010711,93401.0,93386.0,0.010713]
[1767737170551,0.010711,93401.0,93387.0,0.010712]
[1767737170742,0.010711,93400.0,93387.0,0.010712]
[1767737172050,0.010711,93400.0,93385.0,0.09108]
[1767737172051,0.12648165,93397.0,93385.0,0.09108]
[1767737172246,0.12648165,93397.0,93386.0,0.010713]
[1767737172548,0.010711,93399.0,93386.0,0.010713]
[1767737174056,0.010711,93402.0,93385.0,0.09108]
[1767737175261,0.010711,93402.0,93388.0,0.010712]
[1767737175761,0.010711,93401.0,93388.0,0.010712]
[1767737176056,0.12648165,93403.0,93385.0,0.09108]
[1767737176258,0.010711,93399.0,93385.0,0.09108]
[1767737177357,0.010711,93402.0,93388.0,0.010712]
[1767737177753,0.12648165,93396.0,93384.0,0.101793]
[1767737178155,0.09075369,93396.0,93384.0,0.101793]
[1767737178354,0.010711,93398.0,93384.0,0.101793]
[1767737181470,0.010711,93396.0,93384.0,0.09108]
[1767737181970,0.010711,93399.0,93384.0,0.101793]
[1767737183669,0.010711,93397.0,93384.0,0.101793]
[1767737189063,0.010711,93396.0,93384.0,0.13012021]
[1767737189474,0.010711,93396.0,93380.0,0.00013355]
[1767737189475,0.03572796,93397.0,93380.0,0.00013355]
[1767737189774,0.010714,93375.0,93364.0,0.09108]
[1767737189968,0.010714,93371.0,93361.0,0.09108]
[1767737190168,0.010714,93371.0,93360.0,0.09108]
[1767737190768,0.010715,93369.0,93360.0,0.09108]
[1767737190970,0.09075369,93368.0,93353.0,0.09108]
[1767737191278,0.0908649,93367.0,93353.0,0.09108]
[1767737191876,0.0908649,93367.0,93353.0,0.101796]
[1767737192379,0.00011121,93367.0,93356.0,0.010716]
[1767737192564,0.00011121,93367.0,93353.0,0.101796]
[1767737193268,0.00011121,93367.0,93355.0,0.010716]
[1767737193876,0.010715,93366.0,93353.0,0.09108]
[1767737194178,0.00011121,93367.0,93354.0,0.010716]
[1767737195079,0.01082621,93367.0,93353.0,0.101796]
[1767737195480,0.00011121,93367.0,93355.0,0.010716]
[1767737196674,0.010715,93366.0,93353.0,0.09108]
[1767737196864,0.09514209,93360.0,93354.0,0.010716]
[1767737197070,0.00012021,93359.0,93354.0,0.010716]
[1767737198973,0.00012021,93359.0,93349.0,0.03761911]
[1767737199172,0.00012021,93359.0,93352.0,0.09112]
[1767737200882,0.12352628,93371.0,93353.0,0.03648621]
[1767737201081,0.010715,93369.0,93354.0,0.010716]
[1767737201267,0.010715,93369.0,93351.0,0.101836]
[1767737201681,0.010715,93369.0,93351.0,0.13861957]
[1767737201881,0.010715,93369.0,93353.0,0.010716]
[1767737204475,0.010715,93367.0,93353.0,0.010716]
[1767737204676,0.010715,93364.0,93351.0,0.12790357]
[1767737204881,0.010715,93364.0,93351.0,0.13862057]
[1767737205284,0.007715,93364.0,93351.0,0.13862057]
[1767737205585,0.09514209,93368.0,93351.0,0.12790357]
[1767737205788,0.09514209,93368.0,93351.0,0.09112]
[1767737205789,0.010715,93362.0,93351.0,0.09112]
[1767737208389,0.010715,93366.0,93351.0,0.09112]
[1767737208592,0.010716,93361.0,93351.0,0.09112]
[1767737209490,0.10022248,93361.0,93351.0,0.09112]
[1767737209989,0.010716,93360.0,93351.0,0.09112]
[1767737210381,0.10022248,93361.0,93351.0,0.09112]
[1767737211486,0.010715,93362.0,93351.0,0.09112]
[1767737212894,0.10022248,93361.0,93347.0,0.03418349]
[1767737213194,0.010716,93358.0,93348.0,0.09112]
[1767737214390,0.11093848,93361.0,93348.0,0.09112]
[1767737214784,0.010716,93360.0,93348.0,0.09112]
[1767737214985,0.010716,93358.0,93348.0,0.09112]
[1767737215786,0.010716,93356.0,93348.0,0.09112]
[1767737215988,0.010716,93359.0,93348.0,0.09112]
[1767737218188,0.13402639,93365.0,93348.0,0.09112]
[1767737218390,0.010715,93362.0,93348.0,0.101837]
[1767737220089,0.010715,93362.0,93348.0,0.010717]
[1767737220693,0.13402639,93365.0,93347.0,0.03076223]
[1767737220694,0.010716,93361.0,93347.0,0.03076223]
[1767737220895,0.13402639,93365.0,93347.0,0.03076223]
[1767737220896,0.010716,93360.0,93347.0,0.03076223]
[1767737221588,0.010716,93360.0,93346.0,0.09112]
[1767737221788,0.010716,93360.0,93347.0,0.010717]
[1767737221990,0.010716,93360.0,93347.0,0.03954395]
[1767737222198,0.09549974,93359.0,93335.0,0.02882695]
[1767737222390,0.09549974,93356.0,93344.0,0.010717]
[1767737222591,0.010713,93382.0,93336.0,0.09112]
[1767737222592,0.10920842,93371.0,93360.0,0.02882695]
[1767737223093,0.01808842,93371.0,93361.0,0.010715]
[1767737223303,0.010714,93375.0,93361.0,0.010715]
[1767737223601,0.101833,93382.0,93366.0,0.02848422]
[1767737223904,0.11870617,93382.0,93367.0,0.03028077]
[1767737224594,0.11870617,93382.0,93369.0,0.010714]
[1767737224794,0.01687317,93382.0,93369.0,0.0406472]
[1767737224995,0.00214159,93389.0,93377.0,0.010714]
[1767737225399,0.0969291,93389.0,93374.0,0.010714]
[1767737225898,0.13116898,93389.0,93374.0,0.010714]
[1767737226201,0.10549951,93388.0,93374.0,0.010714]
[1767737226400,0.010713,93386.0,93371.0,0.010714]
[1767737226602,0.10550051,93380.0,93366.0,0.010715]
[1767737226902,0.10550051,93380.0,93364.0,0.04030957]
[1767737227796,0.10550051,93380.0,93367.0,0.010715]
[1767737229188,0.03423988,93385.0,93374.0,0.010714]
[1767737229392,0.01863852,93389.0,93375.0,0.02893261]
[1767737229594,0.01863852,93389.0,93377.0,0.010714]
[1767737231104,0.01863852,93389.0,93374.0,0.02812804]
[1767737231300,0.01863852,93389.0,93375.0,0.12209955]
[1767737231301,0.01649693,93389.0,93375.0,0.12209955]
[1767737231501,0.010711,93400.0,93385.0,0.010713]
[1767737231802,0.010711,93398.0,93383.0,0.02812804]
[1767737231994,0.02744503,93398.0,93382.0,0.010713]
[1767737232798,0.09478751,93392.0,93378.0,0.010713]
[1767737233004,0.09478751,93397.0,93382.0,0.010713]
[1767737233205,0.12902739,93397.0,93384.0,0.010713]
[1767737233503,0.09478751,93396.0,93384.0,0.010713]
[1767737233895,0.09478751,93396.0,93386.0,0.010712]
[1767737234704,0.09478751,93396.0,93383.0,0.010713]
[1767737236102,0.09478751,93396.0,93378.0,0.02789191]
[1767737237302,0.09478751,93396.0,93384.0,0.010713]
[1767737237504,0.09478751,93396.0,93386.0,0.010712]
[1767737240301,0.09478751,93396.0,93388.0,0.010712]
[1767737240498,0.09478751,93396.0,93387.0,0.010712]
[1767737241704,3e-08,93398.0,93383.0,0.11942771]
[1767737241909,0.01071,93408.0,93395.0,0.010712]
[1767737242312,0.09478751,93407.0,93397.0,0.010711]
[1767737242501,0.12902739,93406.0,93394.0,0.010712]
[1767737242700,0.09478751,93405.0,93396.0,0.010711]
[1767737245004,0.09478751,93403.0,93387.0,0.09112]
[1767737245207,0.09478751,93403.0,93397.0,0.010711]
[1767737245518,0.09478751,93403.0,93395.0,0.010711]
[1767737246010,0.09478751,93400.0,93387.0,0.09112]
[1767737246312,0.12902739,93400.0,93387.0,0.09112]
[1767737246520,0.09478751,93399.0,93387.0,0.09112]
[1767737246705,0.09478751,93399.0,93387.0,0.101832]
[1767737248698,0.09478751,93399.0,93387.0,0.09112]
[1767737248904,0.09478751,93399.0,93389.0,0.010712]
[1767737250307,0.11151655,93408.0,93394.0,0.010712]
[1767737250507,0.09478751,93412.0,93396.0,0.010711]
[1767737250706,0.12902739,93411.0,93396.0,0.010711]
[1767737250915,0.09478751,93410.0,93398.0,0.010711]
[1767737251217,0.09478751,93409.0,93398.0,0.010711]
[1767737251412,0.12770585,93409.0,93398.0,0.010711]
[1767737251714,0.09611866,93408.0,93398.0,0.010711]
[1767737251915,0.01690551,93412.0,93404.0,0.01071]
[1767737252116,0.230826,93420.0,93404.0,0.01071]
[1767737252316,0.129037,93418.0,93400.0,0.0224431]
[1767737252918,0.129037,93417.0,93397.0,0.1844277]
[1767737253218,0.09611866,93416.0,93397.0,0.1844277]
[1767737253515,0.09611866,93416.0,93397.0,0.09108]
[1767737253716,0.09611866,93416.0,93402.0,0.010711]
[1767737254511,0.129037,93414.0,93402.0,0.010711]
[1767737254721,0.10029911,93412.0,93334.0,0.03206418]
[1767737255015,0.010714,93377.0,93345.0,0.010717]
[1767737255211,0.010716,93357.0,93339.0,0.010718]
[1767737255410,0.09108,93356.0,93341.0,0.010718]
[1767737255616,0.010716,93357.0,93341.0,0.010718]
[1767737255809,0.09108,93356.0,93339.0,0.010718]
[1767737256008,0.09108,93356.0,93335.0,0.03206418]
[1767737256615,0.010713,93380.0,93328.0,0.010719]
[1767737256616,0.09108,93355.0,93336.0,0.03206418]
[1767737256916,0.09108,93355.0,93342.0,0.010718]
[1767737257102,0.18719866,93355.0,93339.0,0.010718]
[1767737257618,0.18719866,93355.0,93341.0,0.010718]
[1767737258128,0.09108,93355.0,93349.0,0.010717]
[1767737258311,0.06611859,93356.0,93349.0,0.010717]
[1767737258613,0.010714,93370.0,93352.0,0.010716]
[1767737258814,0.010715,93368.0,93352.0,0.010716]
[1767737259018,0.09112,93367.0,93352.0,0.010716]
[1767737259412,0.09112,93367.0,93337.0,0.0933477]
[1767737259717,0.09112,93367.0,93340.0,0.010718]
[1767737260109,0.09611866,93366.0,93340.0,0.010718]
[1767737260313,0.10683466,93360.0,93340.0,0.010718]
[1767737260514,0.010716,93356.0,93340.0,0.010718]
[1767737260710,0.09112,93355.0,93340.0,0.010718]
[1767737263619,0.09112,93355.0,93326.0,0.010719]
[1767737263620,0.129037,93342.0,93326.0,0.010719]
[1767737263820,0.09611866,93340.0,93319.0,0.01072]
[1767737264017,0.09112,93339.0,93319.0,0.01072]
[1767737264217,0.010718,93338.0,93319.0,0.01072]
[1767737264614,0.09112,93339.0,93323.0,0.01072]
[1767737265317,0.09112,93339.0,93330.0,0.010719]
[1767737265827,0.09112,93339.0,93326.0,0.010719]
[1767737265828,0.10790555,93339.0,93326.0,0.010719]
[1767737267326,0.10790555,93339.0,93330.0,0.010719]
[1767737267327,0.01678555,93339.0,93330.0,0.010719]
[1767737267529,0.03291834,93346.0,93330.0,0.010719]
[1767737267530,0.09112,93338.0,93330.0,0.010719]
[1767737267720,0.09112,93337.0,93330.0,0.010719]
[1767737269041,0.09112,93337.0,93322.0,0.0933477]
[1767737269233,0.09112,93337.0,93316.0,0.12541188]
[1767737269838,0.09112,93337.0,93326.0,0.010719]
[1767737270541,0.09112,93337.0,93328.0,0.010719]
[1767737272944,0.09112,93337.0,93330.0,0.010719]
[1767737274234,0.09112,93340.0,93333.0,0.010719]
[1767737274434,0.10769806,93340.0,93333.0,0.010719]
[1767737274835,0.01657806,93340.0,93335.0,0.010718]
[1767737275032,0.03291834,93351.0,93332.0,0.010719]